bitfinex-derivatives/quotes_SOLF0:USTF0_20250106
["timestamp","ask_amount","ask_price","bid_price","bid_amount"]
[1736157870094,2.3356,214.15,214.06,1.5011]
[1736157870490,2.3356,214.15,214.08,2.3363]
[1736157870689,2.3357,214.14,214.08,7.35245144]
[1736157871498,2.3356,214.15,214.12,2.3359]
[1736157872703,7.35245144,214.2,214.12,7.35245144]
[1736157872898,2.54,214.19,214.12,7.35245144]
[1736157873091,7.35245144,214.2,214.12,7.35245144]
[1736157873291,2.3353,214.18,214.14,2.3357]
[1736157873491,2.54,214.19,214.14,7.35245144]
[1736157873897,2.54,214.19,214.16,2.3354]
[1736157874095,2.54,214.19,214.14,7.35245144]
[1736157874897,2.54,214.19,214.17,2.3354]
[1736157875502,2.54,214.18,214.17,2.3354]
[1736157876499,2.54,214.18,214.16,2.3354]
[1736157877002,2.54,214.18,214.13,2.3357]
[1736157877901,2.54,214.18,214.12,7.35245144]
[1736157878094,2.3355,214.16,214.14,2.3357]
[1736157878298,2.54,214.18,214.14,2.3357]
[1736157878603,2.54,214.17,214.14,7.35245144]
[1736157879504,2.54,214.17,214.16,2.3355]
[1736157880201,2.3351,214.2,214.16,2.3355]
[1736157880401,2.54,214.19,214.14,7.35245144]
[1736157881501,2.54,214.19,214.16,2.3354]
[1736157883412,9.68735144,214.21,214.18,2.3352]
[1736157883613,2.54,214.2,214.18,2.3352]
[1736157885414,1.4368,214.25,214.2,2.335]
[1736157885617,2.54,214.24,214.2,2.335]
[1736157885814,8.78925144,214.25,214.2,2.335]
[1736157886013,4.8747,214.24,214.2,2.335]
[1736157886406,3.28543095,214.26,214.18,7.35245144]
[1736157886615,2.54,214.25,214.2,7.35245144]
[1736157887014,2.54,214.25,214.23,2.3346]
[1736157890120,60.77245144,214.3,214.24,7.35245144]
[1736157890421,2.54,214.29,214.24,7.35245144]
[1736157890918,2.54,214.29,214.26,2.3343]
[1736157891118,2.54,214.29,214.24,7.35245144]
[1736157891317,323.58769718,214.37,214.26,7.35245144]
[1736157891524,2.54,214.36,214.3,7.35245144]
[1736157893222,2.3335,214.35,214.31,2.3338]
[1736157893621,2.3335,214.35,214.3,7.35245144]
[1736157894418,2.3336,214.34,214.3,7.35245144]
[1736157895316,2.54,214.36,214.3,7.35245144]
[1736157895619,2.3336,214.33,214.3,7.35245144]
[1736157895818,7.35245144,214.33,214.21,4.5258]
[1736157896017,7.35245144,214.33,214.26,7.35245144]
[1736157896226,2.3341,214.29,214.24,7.35245144]
[1736157896526,2.3341,214.29,214.25,2.3344]
[1736157896722,2.3342,214.28,214.25,2.3344]
[1736157896919,2.54,214.3,214.24,7.35245144]
[1736157897121,7.35245144,214.29,214.22,7.35245144]
[1736157898022,7.35245144,214.27,214.21,2.9917]
[1736157898231,7.35245144,214.27,214.21,3.8139]
[1736157898422,7.35245144,214.27,214.17,37.28594939]
[1736157898726,2.3348,214.23,214.2,7.35245144]
[1736157898930,4.8748,214.23,214.2,7.35245144]
[1736157899329,2.54,214.23,214.2,7.35245144]
[1736157899530,2.54,214.23,214.2,9.68745144]
[1736157899929,2.54,214.23,214.2,7.35245144]
[1736157900132,2.54,214.23,214.22,9.68725144]
[1736157901129,1.421,214.35,214.22,7.35245144]
[1736157901327,2.3342,214.28,214.24,9.68705144]
[1736157901625,2.54,214.27,214.24,9.68705144]
[1736157903629,1.421,214.35,214.26,7.35245144]
[1736157903828,2.3338,214.32,214.26,7.35245144]
[1736157904733,2.54,214.32,214.3,9.68625144]
[1736157905234,2.54,214.32,214.17,37.28594939]
[1736157905431,9.89245144,214.32,214.24,7.35245144]
[1736157906429,9.89245144,214.32,214.17,37.28594939]
[1736157906628,7.35245144,214.3,214.24,7.35245144]
[1736157907535,2.3342,214.28,214.24,9.68695144]
[1736157907935,2.58,214.27,214.24,9.68695144]
[1736157908429,2.58,214.27,214.25,2.3345]
[1736157909139,2.58,214.27,214.24,7.35245144]
[1736157909333,2.3338,214.32,214.26,7.35245144]
[1736157909531,2.58,214.29,214.28,7.35245144]
[1736157909937,2.58,214.29,214.28,9.68655144]
[1736157910135,3.2083834,214.4,214.28,7.35245144]
[1736157910431,2.3336,214.34,214.3,2.3339]
[1736157911633,2.3337,214.33,214.3,2.3339]
[1736157911833,2.58,214.32,214.3,2.3339]
[1736157913140,2.58,214.32,214.29,2.334]
[1736157913735,2.3339,214.31,214.28,9.68665144]
[1736157913935,4.9139,214.31,214.28,9.68665144]
[1736157914734,2.58,214.33,214.3,7.35245144]
[1736157914935,2.58,214.32,214.3,9.68625144]
[1736157915237,2.58,214.33,214.3,9.68625144]
[1736157915634,2.58,214.33,214.3,7.35245144]
[1736157915841,2.58,214.33,214.31,2.3338]
[1736157918136,2.58,214.33,214.32,7.35245144]
[1736157918339,2.58,214.33,214.32,9.68615144]
[1736157919042,2.58,214.33,214.32,7.35245144]
[1736157920143,2.3335,214.34,214.32,7.35245144]
[1736157920337,4.9135,214.34,214.32,7.35245144]
[1736157921742,2.3335,214.34,214.32,7.35245144]
[1736157921937,4.9135,214.34,214.31,2.3338]
[1736157922442,4.9135,214.34,214.3,7.35245144]
[1736157922443,2.58,214.34,214.29,9.68645144]
[1736157922644,2.58,214.34,214.29,2.334]
[1736157923439,2.3337,214.32,214.29,2.334]
[1736157924344,7.35245144,214.3,214.23,2.8945]
[1736157924548,7.35245144,214.28,214.23,2.8945]
[1736157925447,2.3343,214.27,214.24,2.3345]
[1736157925644,2.3343,214.27,214.23,1.3927]
[1736157925951,2.3343,214.27,214.23,3.7273]
[1736157926341,2.3343,214.27,214.23,8.74515144]
[1736157926747,2.3342,214.28,214.24,2.3345]
[1736157928355,2.58,214.29,214.27,7.35245144]
[1736157929356,2.3339,214.31,214.28,2.3342]
[1736157929654,2.58,214.31,214.27,7.35245144]
[1736157931054,2.58,214.31,214.23,1.3927]
[1736157931249,2.58,214.31,214.28,7.35245144]
[1736157932052,2.3341,214.29,214.28,7.35245144]
[1736157933952,2.58,214.31,214.28,7.35245144]
[1736157934248,2.58,214.31,214.29,2.334]
[1736157934455,2.58,214.32,214.28,7.35245144]
[1736157934648,4.9138,214.32,214.28,9.68655144]
[1736157934844,2.58,214.32,214.28,9.68655144]
[1736157936051,129.42803827,214.39,214.3,7.35245144]
[1736157936252,9.93245144,214.38,214.3,7.35245144]
[1736157936458,9.93245144,214.38,214.32,7.35245144]
[1736157936850,2.58,214.38,214.32,7.35245144]
[1736157937048,136.78048971,214.4,214.34,7.35245144]
[1736157937249,2.58,214.39,214.34,7.35245144]
[1736157937553,2.3334,214.36,214.34,7.35245144]
[1736157939256,2.58,214.39,214.34,7.35245144]
[1736157939455,2.3334,214.35,214.34,7.35245144]
[1736157941056,2.3334,214.35,214.32,9.68615144]
[1736157941456,2.3336,214.34,214.32,7.35245144]
[1736157942250,2.3334,214.35,214.32,9.68615144]
[1736157942456,2.62,214.36,214.32,9.68615144]
[1736157942658,2.62,214.36,214.32,7.35245144]
[1736157942852,2.3338,214.32,214.28,9.68655144]
[1736157943055,9.97245144,214.36,214.28,9.68655144]
[1736157943554,2.3338,214.32,214.29,2.334]
[1736157943754,2.3338,214.32,214.3,7.35245144]
[1736157944761,2.3338,214.32,214.3,9.68635144]
[1736157945463,9.97245144,214.36,214.3,9.68635144]
[1736157945663,2.3336,214.33,214.3,9.68635144]
[1736157947260,2.3338,214.32,214.29,9.68645144]
[1736157947564,9.97245144,214.36,214.29,7.35245144]
[1736157947764,2.3339,214.31,214.28,2.3341]
[1736157947965,2.62,214.31,214.26,7.35245144]
[1736157948265,2.62,214.31,214.24,1.4661]
[1736157948463,2.3341,214.29,214.26,2.3343]
[1736157949366,2.334,214.3,214.27,9.68665144]
[1736157952864,2.62,214.31,214.29,7.35245144]
[1736157953569,4.9538,214.31,214.29,7.35245144]
[1736157953866,2.62,214.32,214.3,2.3339]
[1736157954071,4.9538,214.32,214.29,7.35245144]
[1736157955362,4.9538,214.32,214.29,9.68645144]
[1736157956572,2.3339,214.31,214.29,7.35245144]
[1736157956867,2.62,214.32,214.27,7.35245144]
[1736157957066,2.62,214.32,214.24,1.4661]
[1736157957371,2.62,214.32,214.26,7.35245144]
[1736157957572,2.62,214.32,214.26,9.68685144]
[1736157958471,2.3341,214.29,214.26,9.68685144]
[1736157960475,2.3341,214.29,214.26,2.3344]
[1736157960778,2.3344,214.27,214.25,7.35245144]
[1736157964087,7.35245144,214.31,214.23,7.35245144]
[1736157964282,2.3344,214.26,214.23,7.35245144]
[1736157964479,2.62,214.27,214.23,7.35245144]
[1736157965186,2.3345,214.26,214.23,9.68715144]
[1736157965385,9.97245144,214.27,214.21,7.35245144]
[1736157965887,2.3347,214.24,214.21,7.35245144]
[1736157966078,9.97245144,214.27,214.19,7.35245144]
[1736157966584,7.35245144,214.25,214.18,2.3352]
[1736157966989,2.3349,214.22,214.18,2.3352]
[1736157967182,4.9549,214.22,214.18,2.3352]
[1736157967384,2.62,214.22,214.14,1.471]
[1736157967686,7.35245144,214.15,214.07,1.4126]
[1736157967877,7.35245144,214.13,214.07,1.4126]
[1736157968190,4.5159,214.21,214.09,6.44684449]
[1736157968191,2.62,214.12,214.09,6.44684449]
[1736157968377,2.62,214.11,214.09,6.44684449]
[1736157968780,2.3361,214.1,214.09,6.44684449]
[1736157968980,9.97245144,214.11,214.04,6.44684449]
[1736157969185,7.35245144,214.09,214.04,6.44684449]
[1736157969392,2.3363,214.09,214.04,6.44684449]
[1736157969691,7.35245144,214.07,214.04,6.44684449]
[1736157969887,4.5159,214.21,214.02,6.44684449]
[1736157969888,2.3368,214.04,214.02,6.44684449]
[1736157970181,4.5159,214.21,213.99,77.3621339]
[1736157970182,4.2746,214.1,213.99,77.3621339]
[1736157970381,2.3364,214.08,214.03,7.35245144]
[1736157970585,2.62,214.07,214.05,7.35245144]
[1736157971184,2.62,214.07,214.06,2.3366]
[1736157971379,1.4753,214.17,214.05,7.35245144]
[1736157971583,1.4753,214.17,214.12,2.3358]
[1736157971780,2.62,214.16,214.1,7.35245144]
[1736157971979,9.97245144,214.16,214.1,7.35245144]
[1736157972991,4.9556,214.16,214.1,9.68855144]
[1736157973185,2.3356,214.16,214.1,9.68855144]
[1736157973390,2.62,214.15,214.1,7.35245144]
[1736157973688,2.62,214.15,214.12,7.35245144]
[1736157973888,129.84122925,214.2,214.12,7.35245144]
[1736157974194,2.62,214.19,214.16,7.35245144]
[1736157974489,2.62,214.19,214.14,7.35245144]
[1736157975092,2.3353,214.18,214.14,7.35245144]
[1736157975294,9.97245144,214.19,214.1,7.35245144]
[1736157975492,7.35245144,214.17,214.1,7.35245144]
[1736157975792,2.62,214.19,214.01,7.35245144]
[1736157975994,7.35245144,214.08,214.01,7.35245144]
[1736157976294,2.3367,214.05,214.01,7.35245144]
[1736157979087,2.3367,214.05,214.0,2.3372]
[1736157979597,2.62,214.04,214.01,11.53245849]
[1736157980000,2.62,214.06,214.01,11.53245849]
[1736157980401,2.62,214.06,214.04,11.53245849]
[1736157980691,2.62,214.09,214.04,11.53245849]
[1736157980894,2.62,214.1,214.09,2.3362]
[1736157981593,2.62,214.1,214.04,11.53245849]
[1736157982490,11.53245849,214.18,214.02,1.4961]
[1736157982697,2.62,214.17,214.07,11.53245849]
[1736157982904,2.62,214.17,214.08,1.4383]
[1736157983097,2.3355,214.16,214.11,2.3359]
[1736157983603,2.62,214.17,214.11,2.3359]
[1736157984091,2.62,214.17,214.1,2.3361]
[1736157985398,2.3357,214.14,214.1,2.3361]
[1736157986094,2.62,214.13,214.1,2.3361]
[1736157986301,2.62,214.13,214.08,1.4383]
[1736157986497,2.62,214.13,214.04,11.53245849]
[1736157986797,2.62,214.13,214.02,1.4961]
[1736157987102,11.53245849,214.12,213.98,11.53245849]
[1736157987400,11.53245849,214.12,214.0,2.3372]
[1736157989294,11.53245849,214.06,213.97,1.5388]
[1736157989496,2.62,214.05,213.97,1.5388]
[1736157989901,11.53245849,214.03,213.93,2.3379]
[1736157990099,11.53245849,214.03,213.89,11.53245849]
[1736157990296,2.3372,214.0,213.89,11.53245849]
[1736157990498,2.62,213.99,213.92,11.53245849]
[1736157990895,2.62,213.99,213.93,3.007]
[1736157991103,2.62,213.99,213.93,4.4979]
[1736157991401,2.62,213.99,213.98,2.3374]
[1736157992099,0.3116,213.99,213.98,2.3374]
[1736157992702,11.53245849,214.09,213.95,11.53245849]
[1736157993002,2.62,214.08,213.98,11.53245849]
[1736157993199,2.62,214.07,213.98,11.53245849]
[1736157993399,2.62,214.06,213.98,11.53245849]
[1736157993599,4.3988,214.14,213.98,11.53245849]
[1736157993600,2.62,214.05,213.98,11.53245849]
[1736157993799,4.3988,214.14,213.98,11.53245849]
[1736157994000,2.3365,214.08,214.02,2.3369]
[1736157994202,2.62,214.07,213.98,11.53245849]
[1736157994806,2.62,214.07,214.03,2.3368]
[1736157995002,2.3366,214.06,213.98,11.53245849]
[1736157995205,2.3366,214.06,213.95,11.53245849]
[1736157995507,2.3366,214.06,214.02,2.3369]
[1736157995707,2.3366,214.06,213.95,11.53245849]
[1736157996007,2.3366,214.06,213.98,11.53245849]
[1736157996409,2.62,214.07,213.93,4.4979]
[1736157996711,2.62,214.07,213.95,11.53245849]
[1736157996910,2.62,214.07,213.93,4.4979]
[1736157997203,2.337,214.03,213.98,2.3374]
[1736157997409,2.72,214.02,213.98,2.3374]
[1736157998103,5.0571,214.02,213.98,2.3374]
[1736157999007,2.72,214.02,213.99,2.3373]
[1736157999203,2.72,214.02,213.93,4.4979]
[1736157999706,2.72,214.05,213.98,11.53245849]
[1736158000208,2.72,214.05,214.04,2.3368]
[1736158005014,11.53245849,214.13,213.98,11.53245849]
[1736158005213,2.72,214.12,213.98,11.53245849]
[1736158005512,2.72,214.11,214.01,11.53245849]
[1736158005715,2.72,214.11,214.04,2.3368]
[1736158005914,2.72,214.11,214.02,1.4805]
[1736158006308,2.72,214.11,214.08,2.3362]
[1736158009816,4.3988,214.14,214.08,2.3362]
[1736158010015,2.72,214.13,214.08,2.3362]
[1736158010509,2.336,214.11,214.02,1.4805]
[1736158010720,14.25245849,214.13,213.98,11.53245849]
[1736158011114,2.3363,214.09,214.03,2.3368]
[1736158011310,2.72,214.08,214.03,2.3368]
[1736158011620,2.72,214.07,214.03,2.3368]
[1736158012421,2.3366,214.06,214.03,2.3368]
[1736158016921,2.3366,214.06,214.02,2.3369]
[1736158017316,2.3366,214.06,213.98,11.53245849]
[1736158017519,2.3366,214.06,214.03,2.3369]
[1736158019020,14.25245849,214.07,213.96,1.5239]
[1736158019722,2.3372,214.0,213.97,2.3375]
[1736158019920,2.72,213.99,213.97,2.3375]
[1736158022123,2.72,213.99,213.98,2.3374]
[1736158022519,2.72,213.99,213.93,2.9727]
[1736158022713,2.72,213.99,213.93,1.4909]
[1736158023323,5.0574,213.99,213.95,2.3377]
[1736158023521,2.72,213.99,213.93,1.4909]
[1736158023719,2.72,213.99,213.96,2.3376]
[1736158023919,2.72,213.99,213.93,1.4909]
[1736158024426,5.0574,213.99,213.95,2.3377]
[1736158025323,2.3375,213.97,213.93,2.3379]
[1736158025518,2.3375,213.97,213.89,12.96355849]
[1736158026421,2.3377,213.96,213.92,2.338]
[1736158026616,2.72,213.99,213.85,49.20968936]
[1736158027020,2.72,213.99,213.91,2.3382]
[1736158027220,2.72,213.99,213.85,49.20968936]
[1736158027627,2.3377,213.96,213.8,2.74]
[1736158027922,2.3377,213.96,213.86,11.53245849]
[1736158028427,2.72,213.99,213.93,2.338]
[1736158028724,2.3376,213.97,213.93,2.338]
[1736158029428,2.3376,213.97,213.94,2.3378]
[1736158029626,2.74,213.96,213.94,2.3378]
[1736158029827,2.74,213.96,213.86,11.53245849]
[1736158029828,11.53245849,214.01,213.87,1.4232]
[1736158030030,2.74,214.0,213.89,11.53245849]
[1736158030527,2.74,214.0,213.98,2.3374]
[1736158030928,1.3934,214.03,213.98,2.3374]
[1736158031125,2.74,214.02,213.98,2.3374]
[1736158031731,2.74,214.02,213.92,11.53245849]
[1736158031732,2.337,214.02,213.99,2.3373]
[1736158031918,2.74,214.01,213.99,2.3373]
[1736158033124,2.3368,214.05,214.02,2.337]
[1736158033325,2.74,214.04,214.02,2.337]
[1736158034023,2.3368,214.05,214.02,2.337]
[1736158034227,2.74,214.04,214.03,2.3368]
[1736158034430,13.04755849,214.1,213.96,2.8955]
[1736158034629,2.74,214.09,213.98,11.53245849]
[1736158035030,2.74,214.09,214.06,2.3366]
[1736158035226,1.5151,214.1,214.06,2.3366]
[1736158035429,2.74,214.09,214.07,2.3364]
[1736158035636,2.74,214.09,214.01,11.53245849]
[1736158036924,2.74,214.09,214.07,2.3364]
[1736158037127,6.9483203,214.12,214.01,11.53245849]
[1736158037326,2.74,214.11,214.01,11.53245849]
[1736158037531,2.74,214.11,214.1,2.3361]
[1736158037731,4.6124203,214.12,214.1,2.3361]
[1736158037932,2.74,214.11,214.01,11.53245849]
[1736158038236,2.74,214.1,214.07,2.3364]
[1736158038431,2.74,214.09,214.07,2.3364]
[1736158039234,2.74,214.09,214.06,2.3366]
[1736158040039,2.74,214.09,214.01,11.53245849]
[1736158040338,2.74,214.09,214.07,2.3364]
[1736158040538,2.74,214.09,214.01,11.53245849]
[1736158040737,2.74,214.09,214.08,2.3363]
[1736158041235,2.74,214.09,214.01,11.53245849]
[1736158041535,2.74,214.09,213.98,11.53245849]
[1736158041932,2.3364,214.08,214.04,2.3368]
[1736158042743,2.3365,214.07,214.03,2.3369]
[1736158044341,2.74,214.09,213.98,11.53245849]
[1736158044940,5.0762,214.09,213.98,11.53245849]
[1736158045642,5.0762,214.09,214.05,2.3366]
[1736158045945,2.74,214.09,213.98,11.53245849]
[1736158046138,11.53245849,214.13,214.07,2.3364]
[1736158046445,2.74,214.12,214.07,2.3364]
[1736158046641,2.336,214.11,214.08,2.3363]
[1736158046839,5.076,214.11,214.08,2.3363]
[1736158047740,2.74,214.11,214.01,11.53245849]
[1736158047943,2.3363,214.09,213.98,11.53245849]
[1736158048842,2.3361,214.1,214.06,2.3365]
[1736158049041,2.3361,214.1,213.98,11.53245849]
[1736158049542,5.0761,214.11,213.98,11.53245849]
[1736158049744,2.74,214.11,213.98,11.53245849]
[1736158050045,2.3363,214.09,213.98,11.53245849]
[1736158050343,11.53245849,214.1,213.97,4.2363]
[1736158050645,2.3365,214.07,214.04,2.3368]
[1736158050841,2.74,214.06,214.04,2.3368]
[1736158051553,2.74,214.06,213.97,4.2363]
[1736158051751,2.74,214.06,214.02,2.337]
[1736158052351,2.3367,214.05,214.01,2.3371]
[1736158052750,2.74,214.06,214.01,2.3371]
[1736158053648,2.3369,214.04,214.0,2.3372]
[1736158054561,2.3369,214.04,213.97,1.4963]
[1736158054757,2.3369,214.04,214.01,2.3371]
[1736158054959,2.74,214.06,213.97,1.4963]
[1736158055157,2.3367,214.05,214.02,2.337]
[1736158057662,2.3367,214.05,214.01,2.3371]
[1736158057960,2.74,214.06,213.97,1.4963]
[1736158058363,2.74,214.06,214.0,2.3371]
[1736158058865,2.3371,214.02,213.98,2.3373]
[1736158059160,2.7,214.01,213.98,2.3373]
[1736158060159,2.7,214.01,213.96,10.27926087]
[1736158060355,2.7,214.01,213.99,2.3373]
[1736158061357,2.7,214.01,213.96,1.4733]
[1736158061566,5.0371,214.01,213.98,2.3374]
[1736158063767,2.7,214.01,213.96,1.4733]
[1736158064066,2.7,214.03,213.96,1.4733]
[1736158064662,1.446,214.09,213.96,13.01017699]
[1736158064857,2.7,214.08,213.96,13.01017699]
[1736158065062,1.446,214.09,213.99,11.53687699]
[1736158065264,141.37810624,214.13,213.99,11.53687699]
[1736158065466,2.7,214.12,214.0,1.5265]
[1736158065966,2.3363,214.09,214.06,2.3366]
[1736158066166,2.7,214.12,214.0,2.9435]
[1736158066568,2.3362,214.1,214.07,2.3364]
[1736158066765,2.7,214.12,214.07,2.3364]
[1736158067165,2.3361,214.11,214.07,2.3364]
[1736158067466,2.7,214.12,214.0,2.9435]
[1736158068267,2.3363,214.09,214.05,2.3366]
[1736158069070,2.3363,214.09,214.06,2.3365]
[1736158069573,2.3362,214.1,214.06,2.3365]
[1736158069867,2.7,214.12,214.0,2.9435]
[1736158070072,2.7,214.12,214.07,2.3364]
[1736158070272,2.3362,214.1,214.0,2.9435]
[1736158070570,2.3362,214.1,214.06,2.3365]
[1736158071870,5.0359,214.12,214.0,2.9435]
[1736158072368,2.7,214.11,214.09,2.3362]
[1736158073172,2.7,214.11,214.02,11.53687699]
[1736158073764,2.7,214.11,214.0,2.9435]
[1736158073970,2.3363,214.09,214.0,2.9435]
[1736158074773,2.3363,214.09,214.05,2.3366]
[1736158075569,2.3363,214.09,214.06,2.3365]
[1736158075968,2.3362,214.1,214.06,2.3365]
[1736158076668,2.3362,214.1,214.0,2.9435]
[1736158076875,2.336,214.11,214.02,11.53687699]
[1736158077078,5.00919879,214.15,214.02,11.53687699]
[1736158077374,2.3358,214.13,214.05,11.53687699]
[1736158077964,2.7,214.14,214.05,11.53687699]
[1736158078165,53.48,214.16,214.05,11.53687699]
[1736158078370,2.7,214.15,214.06,1.3867]
[1736158078673,5.0356,214.15,214.11,2.3359]
[1736158079171,2.7,214.15,214.11,2.3359]
[1736158079477,2.3357,214.14,214.11,2.3359]
[1736158080981,2.3358,214.13,214.1,2.3361]
[1736158083983,2.7,214.13,214.11,2.336]
[1736158087485,7.37677664,214.12,214.09,2.3362]
[1736158087678,7.37677664,214.12,214.06,1.3867]
[1736158088581,2.336,214.11,214.07,2.3364]
[1736158088980,2.336,214.11,214.06,1.3867]
[1736158089483,2.336,214.11,214.08,2.3363]
[1736158089682,2.3362,214.1,214.06,1.3867]
[1736158089983,2.3362,214.1,214.06,3.7232]
[1736158090183,2.3363,214.09,214.06,2.3365]
[1736158090885,2.3361,214.1,214.06,2.3365]
[1736158091188,2.3361,214.1,214.07,2.3364]
[1736158091688,2.336,214.11,214.07,2.3364]
[1736158095695,7.37677664,214.08,214.01,1.5164]
[1736158095894,2.72,214.07,214.01,1.5164]
[1736158097200,2.3366,214.06,214.03,2.3368]
[1736158097398,2.72,214.07,214.01,1.5164]
[1736158097698,5.0565,214.07,214.03,2.3368]
[1736158098697,2.72,214.07,214.02,7.37677664]
[1736158099398,2.72,214.07,214.04,2.3367]
[1736158099800,3.50605577,214.14,214.04,7.37677664]
[1736158100002,7.37677664,214.11,214.07,2.3364]
[1736158100494,2.336,214.12,214.07,2.3364]
[1736158100696,2.72,214.13,214.07,2.3364]
[1736158100895,7.37677664,214.11,214.07,2.3364]
[1736158101599,2.3361,214.1,214.07,2.3364]
[1736158102101,7.37677664,214.09,214.02,7.37677664]
[1736158102296,2.72,214.08,214.02,7.37677664]
[1736158102693,5.0564,214.08,214.04,2.3367]
[1736158103806,5.0564,214.08,214.02,7.37677664]
[1736158104002,5.0564,214.08,214.05,2.3366]
[1736158105402,2.3361,214.1,214.07,2.3365]
[1736158105603,2.72,214.09,214.04,7.37677664]
[1736158106107,2.72,214.09,214.06,7.37677664]
[1736158106404,2.72,214.09,214.08,2.3363]
[1736158109703,2.3357,214.14,214.11,2.336]
[1736158110006,2.72,214.13,214.08,7.37677664]
[1736158110205,2.72,214.13,214.06,7.37677664]
[1736158110405,5.0558,214.13,214.1,2.336]
[1736158111104,2.72,214.13,214.1,2.336]
[1736158112406,2.72,214.13,214.11,2.336]
[1736158113009,2.72,214.13,214.08,7.37677664]
[1736158113210,2.72,214.13,214.12,2.3359]
[1736158114012,2.72,214.13,214.08,7.37677664]
[1736158114013,10.09677664,214.13,214.01,1.5164]
[1736158114311,7.37677664,214.11,214.03,7.37677664]
[1736158114504,9.71277664,214.11,214.05,2.3366]
[1736158114701,2.336,214.11,214.05,7.37677664]
[1736158115102,2.3359,214.12,214.08,2.3363]
[1736158115313,10.09677664,214.13,214.05,7.37677664]
[1736158115314,2.72,214.13,214.05,7.37677664]
[1736158115508,2.72,214.13,214.07,7.37677664]
[1736158116206,5.0559,214.13,214.09,2.3362]
[1736158117508,2.3359,214.12,214.09,2.3362]
[1736158117713,10.09677664,214.13,214.07,2.3364]
[1736158117910,10.09677664,214.13,214.05,7.37677664]
[1736158118717,2.3361,214.11,214.08,2.3362]
[1736158119313,10.09677664,214.13,214.05,7.37677664]
[1736158119514,2.3359,214.12,214.09,2.3362]
[1736158120620,2.3362,214.1,214.07,2.3364]
[1736158121617,10.09677664,214.13,214.05,7.37677664]
[1736158122419,2.3362,214.1,214.07,2.3364]
[1736158123319,10.09677664,214.13,214.05,7.37677664]
[1736158123516,2.336,214.11,214.08,2.3363]
[1736158123721,2.72,214.13,214.07,7.37677664]
[1736158125222,2.72,214.13,214.08,2.3363]
[1736158125522,2.72,214.13,214.07,7.37677664]
[1736158126423,2.72,214.13,214.1,2.336]
[1736158126922,2.72,214.13,214.07,7.37677664]
[1736158127519,5.0357,214.14,214.07,7.37677664]
[1736158127726,5.0357,214.14,214.1,2.336]
[1736158128023,2.3357,214.14,214.1,2.336]
[1736158128225,2.7,214.13,214.1,2.336]
[1736158128822,2.7,214.13,214.12,2.3359]
[1736158129422,2.7,214.13,214.1,2.3361]
[1736158130620,2.7,214.13,214.09,7.37677664]
[1736158130815,2.7,214.13,214.11,2.336]
[1736158131122,2.3354,214.17,214.11,7.37677664]
[1736158131325,2.7,214.16,214.11,7.37677664]
[1736158131526,2.7,214.16,214.13,2.3357]
[1736158131922,2.7,214.16,214.11,7.37677664]
[1736158132222,2.7,214.17,214.11,7.37677664]
[1736158132423,2.7,214.17,214.14,2.3356]
[1736158132622,6.05279622,214.22,214.13,7.37677664]
[1736158132623,4.62319622,214.22,214.13,7.37677664]
[1736158132926,2.7,214.21,214.15,7.37677664]
[1736158133126,2.335,214.21,214.15,7.37677664]
[1736158133427,2.7,214.2,214.15,7.37677664]
[1736158133621,2.7,214.2,214.18,2.3352]
[1736158133823,2.7,214.2,214.15,7.37677664]
[1736158134023,2.7,214.2,214.16,2.3354]
[1736158134827,5.0351,214.2,214.16,2.3354]